[Event "MČR juniorů a juniorek v rapid šachu 2024"]
[Site "Hotel Fit Fun, Harrachov, Czech Republic"]
[Date "2024.09.21"]
[Round "5.22"]
[White "Urbansky Stepan"]
[Black "Hyam Robin"]
[Result "1/2-1/2"]
[TimeControl "20+5"]
[WhiteFideId "23761741"]
[BlackFideId "23773413"]
[WhiteElo "1837"]
[BlackElo "1571"]

1. e4 {[%clk 00:19:01]} {[%emt 00:00:58]} c5 {[%clk 00:20:09]} {[%emt
00:00:03]} 2. Nf3 {[%clk 00:19:04]} {[%emt 00:00:02]} d6 {[%clk 00:20:12]}
{[%emt 00:00:02]} 3. d4 {[%clk 00:19:07]} {[%emt 00:00:01]} cxd4 {[%clk
00:20:15]} {[%emt 00:00:03]} 4. Nxd4 {[%clk 00:19:10]} {[%emt 00:00:02]} Nf6
{[%clk 00:20:18]} {[%emt 00:00:02]} 5. Nc3 {[%clk 00:19:13]} {[%emt 00:00:01]}
g6 {[%clk 00:20:21]} {[%emt 00:00:03]} 6. Be3 {[%clk 00:19:15]} {[%emt
00:00:03]} Bg7 {[%clk 00:20:23]} {[%emt 00:00:02]} 7. f3 {[%clk 00:19:18]}
{[%emt 00:00:02]} O-O {[%clk 00:20:26]} {[%emt 00:00:02]} 8. Qd2 {[%clk
00:19:21]} Nc6 {[%clk 00:20:29]} {[%emt 00:00:05]} 9. O-O-O {[%clk 00:19:23]}
{[%emt 00:00:02]} d5 {[%clk 00:20:32]} {[%emt 00:00:02]} 10. Nxc6 {[%clk
00:19:26]} {[%emt 00:00:02]} bxc6 {[%clk 00:20:35]} {[%emt 00:00:02]} 11. exd5
{[%clk 00:19:29]} {[%emt 00:00:02]} Nxd5 {[%clk 00:20:38]} {[%emt 00:00:02]} 12.
Bd4 {[%clk 00:19:33]} {[%emt 00:00:01]} e5 {[%clk 00:20:38]} {[%emt 00:00:06]}
13. Bc5 {[%clk 00:19:37]} {[%emt 00:00:01]} Re8 {[%clk 00:20:26]} {[%emt
00:00:17]} 14. Ne4 {[%clk 00:19:16]} {[%emt 00:00:25]} Be6 {[%clk 00:15:03]}
{[%emt 00:05:26]} 15. Bc4 {[%clk 00:19:17]} {[%emt 00:00:06]} Nc7 {[%clk
00:13:09]} {[%emt 00:01:59]} 16. Bxe6 {[%clk 00:17:20]} {[%emt 00:02:02]} Nxe6
{[%clk 00:12:51]} {[%emt 00:00:23]} 17. Be3 {[%clk 00:16:32]} {[%emt 00:00:53]}
f5 {[%clk 00:12:17]} {[%emt 00:00:40]} 18. Nd6 {[%clk 00:15:05]} {[%emt
00:01:31]} Re7 {[%clk 00:12:07]} {[%emt 00:00:14]} 19. Nc4 {[%clk 00:14:21]}
{[%emt 00:00:51]} Qc7 {[%clk 00:11:05]} {[%emt 00:01:06]} 20. Qd6 {[%clk
00:13:34]} {[%emt 00:00:52]} Rd8 {[%clk 00:09:30]} {[%emt 00:01:39]} 21. Qxc7
{[%clk 00:13:23]} {[%emt 00:00:17]} Rxc7 {[%clk 00:09:09]} {[%emt 00:00:25]} 22.
Rxd8+ {[%clk 00:12:59]} {[%emt 00:00:30]} Nxd8 {[%clk 00:09:13]} {[%emt
00:00:02]} 23. Rd1 {[%clk 00:13:02]} {[%emt 00:00:01]} Ne6 {[%clk 00:09:02]}
{[%emt 00:00:16]} 24. Rd6 {[%clk 00:12:54]} {[%emt 00:00:12]} Kf7 {[%clk
00:08:39]} {[%emt 00:00:28]} 25. Na5 {[%clk 00:12:40]} {[%emt 00:00:20]} c5
{[%clk 00:07:16]} {[%emt 00:01:27]} 26. Ra6 {[%clk 00:11:37]} {[%emt 00:01:08]}
f4 {[%clk 00:05:29]} {[%emt 00:01:52]} 27. Bf2 {[%clk 00:11:32]} {[%emt
00:00:09]} Nd8 {[%clk 00:05:32]} {[%emt 00:00:03]} 28. Rd6 {[%clk 00:09:54]}
{[%emt 00:01:43]} Ke7 {[%clk 00:05:04]} {[%emt 00:00:35]} 29. Rd5 {[%clk
00:08:57]} {[%emt 00:01:01]} Ne6 {[%clk 00:04:42]} {[%emt 00:00:27]} 30. c3
{[%clk 00:08:28]} {[%emt 00:00:33]} Kf6 {[%clk 00:04:02]} {[%emt 00:00:45]} 31.
Nc4 {[%clk 00:08:07]} {[%emt 00:00:25]} Kf5 {[%clk 00:03:48]} {[%emt 00:00:20]}
32. Nd2 {[%clk 00:07:42]} {[%emt 00:00:30]} h5 {[%clk 00:03:22]} {[%emt
00:00:31]} 33. b3 {[%clk 00:07:18]} {[%emt 00:00:29]} g5 {[%clk 00:03:05]}
{[%emt 00:00:21]} 34. Ne4 {[%clk 00:07:14]} {[%emt 00:00:08]} Bf8 {[%clk
00:03:00]} {[%emt 00:00:11]} 35. h3 {[%clk 00:03:10]} {[%emt 00:04:09]} h4
{[%clk 00:03:04]} 36. Kd2 {[%clk 00:03:03]} Be7 {[%clk 00:02:56]} {[%emt
00:00:25]} 37. Kd3 {[%clk 00:03:00]} Kg6 {[%clk 00:01:32]} {[%emt 00:01:37]} 38.
Kc4 {[%clk 00:02:59]} Kf5 {[%clk 00:01:03]} {[%emt 00:00:40]} 39. Nxc5 {[%clk
00:02:50]} Nxc5 {[%clk 00:00:59]} {[%emt 00:00:23]} 40. Bxc5 {[%clk 00:02:52]}
Bxc5 {[%clk 00:00:52]} {[%emt 00:00:15]} 41. Rxc5 {[%clk 00:02:55]} Rxc5+
{[%clk 00:00:57]} {[%emt 00:00:03]} 42. Kxc5 {[%clk 00:02:58]} e4 {[%clk
00:01:01]} 43. fxe4 {[%clk 00:02:39]} {[%emt 00:00:27]} Kxe4 {[%clk 00:00:33]}
{[%emt 00:00:33]} 44. c4 {[%clk 00:02:42]} {[%emt 00:00:02]} g4 {[%clk
00:00:35]} {[%emt 00:00:03]} 45. hxg4 {[%clk 00:02:40]} {[%emt 00:00:07]} h3
{[%clk 00:00:30]} {[%emt 00:00:09]} 46. gxh3 {[%clk 00:02:35]} {[%emt
00:00:10]} f3 {[%clk 00:00:35]} {[%emt 00:00:02]} 47. Kd6 {[%clk 00:02:18]}
{[%emt 00:00:21]} f2 {[%clk 00:00:38]} {[%emt 00:00:01]} 48. c5 {[%clk
00:02:22]} {[%emt 00:00:01]} f1=Q {[%clk 00:00:42]} {[%emt 00:00:01]} 49. c6
{[%clk 00:02:26]} Qf6+ {[%clk 00:00:35]} {[%emt 00:00:10]} 50. Kd7 {[%clk
00:02:29]} {[%emt 00:00:05]} Qd4+ {[%clk 00:00:33]} {[%emt 00:00:07]} 51. Kc8
{[%clk 00:02:27]} {[%emt 00:00:07]} Qh8+ {[%clk 00:00:16]} {[%emt 00:00:22]} 52.
Kb7 {[%clk 00:02:29]} {[%emt 00:00:03]} Qxh3 {[%clk 00:00:10]} {[%emt
00:00:11]} 53. c7 {[%clk 00:02:33]} {[%emt 00:00:01]} Qh7 {[%clk 00:00:11]}
{[%emt 00:00:04]} 54. Kb8 {[%clk 00:02:33]} {[%emt 00:00:05]} Qh2 {[%clk
00:00:06]} {[%emt 00:00:10]} 55. Kb7 {[%clk 00:02:10]} {[%emt 00:00:28]} Qh7
{[%clk 00:00:10]} 56. g5 {[%clk 00:01:34]} {[%emt 00:00:41]} Kf5 {[%clk
00:00:09]} {[%emt 00:00:06]} 57. Kb8 {[%clk 00:01:35]} {[%emt 00:00:04]} Qh2
{[%clk 00:00:10]} {[%emt 00:00:04]} 58. Kb7 {[%clk 00:01:28]} {[%emt 00:00:12]}
1/2-1/2



[ePGN "0.1;DGT LiveChess/2.2.6"]

[Event "MČR juniorů a juniorek v rapid šachu 2024"]
[Site "Hotel Fit Fun, Harrachov, Czech Republic"]
[Date "2024.09.21"]
[Round "5.23"]
[White "Lebeda, FrantiĹˇek JiĹ™Ă­"]
[Black "Rybacek Martin"]
[Result "0-1"]
[TimeControl "20+5"]
[BlackFideId "23739266"]
[WhiteElo "1000"]
[BlackElo "1831"]

1. e4 {[%clk 00:20:08]} {[%emt 00:00:02]} c6 {[%clk 00:20:07]} {[%emt
00:00:04]} 2. c4 {[%clk 00:20:10]} {[%emt 00:00:04]} d5 {[%clk 00:20:09]}
{[%emt 00:00:02]} 3. cxd5 {[%clk 00:20:13]} {[%emt 00:00:02]} cxd5 {[%clk
00:20:13]} {[%emt 00:00:02]} 4. exd5 {[%clk 00:20:16]} {[%emt 00:00:01]} Nf6
{[%clk 00:20:16]} {[%emt 00:00:02]} 5. Nc3 {[%clk 00:20:18]} {[%emt 00:00:03]}
Nxd5 {[%clk 00:20:16]} {[%emt 00:00:04]} 6. Nf3 {[%clk 00:20:15]} {[%emt
00:00:08]} Nc6 {[%clk 00:20:11]} {[%emt 00:00:10]} 7. Be2 {[%clk 00:20:15]}
{[%emt 00:00:05]} g6 {[%clk 00:19:49]} {[%emt 00:00:27]} 8. O-O {[%clk
00:20:12]} {[%emt 00:00:08]} Bg7 {[%clk 00:19:52]} {[%emt 00:00:02]} 9. Qb3
{[%clk 00:20:04]} {[%emt 00:00:13]} Nxc3 {[%clk 00:18:12]} {[%emt 00:01:46]} 10.
dxc3 {[%clk 00:20:03]} {[%emt 00:00:07]} O-O {[%clk 00:18:14]} {[%emt
00:00:02]} 11. Be3 {[%clk 00:20:01]} {[%emt 00:00:06]} Qc7 {[%clk 00:18:09]}
{[%emt 00:00:11]} 12. h3 {[%clk 00:19:52]} {[%emt 00:00:13]} Be6 {[%clk
00:18:13]} {[%emt 00:00:02]} 13. Qc2 {[%clk 00:19:50]} {[%emt 00:00:08]} Rfd8
{[%clk 00:17:52]} {[%emt 00:00:25]} 14. Rad1 {[%clk 00:19:51]} {[%emt
00:00:04]} Bf5 {[%clk 00:17:47]} {[%emt 00:00:10]} 15. Bd3 {[%clk 00:19:38]}
{[%emt 00:00:17]} Rxd3 {[%clk 00:16:14]} {[%emt 00:01:39]} 16. Rxd3 {[%clk
00:19:41]} {[%emt 00:00:02]} Nb4 {[%clk 00:16:01]} {[%emt 00:00:18]} 0-1



[ePGN "0.1;DGT LiveChess/2.2.6"]

[Event "MČR juniorů a juniorek v rapid šachu 2024"]
[Site "Hotel Fit Fun, Harrachov, Czech Republic"]
[Date "2024.09.21"]
[Round "5.24"]
[White "Dobsa Emma"]
[Black "Vyslysel Petr"]
[Result "0-1"]
[TimeControl "20+5"]
[WhiteFideId "23709391"]
[BlackFideId "23730277"]
[WhiteElo "1830"]
[BlackElo "1678"]

1. e4 {[%clk 00:20:09]} e6 {[%clk 00:19:00]} {[%emt 00:01:11]} 2. d4 {[%clk
00:20:12]} {[%emt 00:00:01]} d5 {[%clk 00:19:04]} {[%emt 00:00:01]} 3. Bd3
{[%clk 00:20:08]} {[%emt 00:00:09]} c5 {[%clk 00:18:50]} {[%emt 00:00:19]} 4.
exd5 {[%clk 00:20:11]} {[%emt 00:00:03]} exd5 {[%clk 00:18:48]} {[%emt
00:00:07]} 5. dxc5 {[%clk 00:20:10]} {[%emt 00:00:06]} Bxc5 {[%clk 00:18:51]}
{[%emt 00:00:02]} 6. Nc3 {[%clk 00:20:13]} {[%emt 00:00:02]} Be6 {[%clk
00:18:44]} {[%emt 00:00:11]} 7. Nf3 {[%clk 00:20:12]} {[%emt 00:00:06]} Nc6
{[%clk 00:18:42]} {[%emt 00:00:07]} 8. O-O {[%clk 00:20:13]} {[%emt 00:00:04]}
Nf6 {[%clk 00:18:41]} {[%emt 00:00:06]} 9. Bg5 {[%clk 00:20:11]} {[%emt
00:00:07]} O-O {[%clk 00:18:42]} {[%emt 00:00:04]} 10. Qd2 {[%clk 00:19:22]}
{[%emt 00:00:55]} h6 {[%clk 00:18:28]} {[%emt 00:00:18]} 11. Bh4 {[%clk
00:18:42]} {[%emt 00:00:46]} Rc8 {[%clk 00:18:22]} {[%emt 00:00:10]} 12. Rad1
{[%clk 00:18:29]} {[%emt 00:00:18]} Bb4 {[%clk 00:18:10]} {[%emt 00:00:17]} 13.
a3 {[%clk 00:18:06]} {[%emt 00:00:28]} Ba5 {[%clk 00:17:46]} {[%emt 00:00:30]}
14. Be2 {[%clk 00:17:03]} {[%emt 00:01:07]} d4 {[%clk 00:15:19]} {[%emt
00:02:32]} 15. Qf4 {[%clk 00:14:29]} {[%emt 00:02:39]} Bxc3 {[%clk 00:13:53]}
{[%emt 00:01:31]} 16. bxc3 {[%clk 00:14:28]} {[%emt 00:00:06]} Nd5 {[%clk
00:12:38]} {[%emt 00:01:21]} 17. Qd2 {[%clk 00:10:00]} {[%emt 00:04:33]} dxc3
{[%clk 00:12:26]} {[%emt 00:00:16]} 18. Bxd8 {[%clk 00:09:37]} {[%emt
00:00:28]} cxd2 {[%clk 00:12:29]} {[%emt 00:00:02]} 19. Bh4 {[%clk 00:09:41]}
{[%emt 00:00:02]} Nc3 {[%clk 00:12:13]} {[%emt 00:00:21]} 20. Rxd2 {[%clk
00:09:36]} {[%emt 00:00:09]} Nxe2+ {[%clk 00:12:16]} {[%emt 00:00:02]} 21. Rxe2
{[%clk 00:09:40]} Bc4 {[%clk 00:12:20]} {[%emt 00:00:01]} 22. Re4 {[%clk
00:09:36]} {[%emt 00:00:10]} Bxf1 {[%clk 00:12:20]} {[%emt 00:00:04]} 23. Kxf1
{[%clk 00:09:39]} {[%emt 00:00:01]} Rfe8 {[%clk 00:12:23]} {[%emt 00:00:03]} 24.
Rg4 {[%clk 00:09:38]} {[%emt 00:00:06]} g5 {[%clk 00:11:59]} {[%emt 00:00:29]}
25. Bg3 {[%clk 00:09:22]} {[%emt 00:00:21]} f5 {[%clk 00:11:51]} {[%emt
00:00:14]} 26. Rc4 {[%clk 00:09:01]} {[%emt 00:00:25]} f4 {[%clk 00:11:53]}
{[%emt 00:00:03]} 27. h4 {[%clk 00:09:03]} {[%emt 00:00:03]} fxg3 {[%clk
00:11:49]} {[%emt 00:00:09]} 28. hxg5 {[%clk 00:09:07]} {[%emt 00:00:02]} hxg5
{[%clk 00:11:30]} {[%emt 00:00:23]} 29. Rg4 {[%clk 00:08:54]} {[%emt 00:00:18]}
gxf2 {[%clk 00:11:27]} {[%emt 00:00:08]} 30. Rxg5+ {[%clk 00:08:59]} Kf7 {[%clk
00:11:30]} {[%emt 00:00:02]} 31. Kxf2 {[%clk 00:09:01]} {[%emt 00:00:02]} Rg8
{[%clk 00:11:25]} {[%emt 00:00:10]} 32. Rf5+ {[%clk 00:08:59]} {[%emt
00:00:07]} Ke6 {[%clk 00:11:28]} {[%emt 00:00:02]} 33. Rb5 {[%clk 00:08:54]}
{[%emt 00:00:11]} b6 {[%clk 00:11:10]} {[%emt 00:00:22]} 34. Ng5+ {[%clk
00:08:53]} {[%emt 00:00:05]} Kd7 {[%clk 00:11:07]} {[%emt 00:00:08]} 35. Rd5+
{[%clk 00:08:55]} {[%emt 00:00:04]} Ke7 {[%clk 00:10:53]} {[%emt 00:00:19]} 36.
Ne4 {[%clk 00:08:45]} {[%emt 00:00:15]} Rcf8+ {[%clk 00:10:52]} {[%emt
00:00:05]} 37. Kg1 {[%clk 00:08:48]} {[%emt 00:00:03]} Ke6 {[%clk 00:10:41]}
{[%emt 00:00:17]} 38. Rh5 {[%clk 00:08:51]} Ne5 {[%clk 00:09:46]} {[%emt
00:01:00]} 39. Rh7 {[%clk 00:08:18]} {[%emt 00:00:38]} Nf3+ {[%clk 00:09:42]}
{[%emt 00:00:09]} 40. Kh1 {[%clk 00:08:12]} {[%emt 00:00:11]} Rh8 {[%clk
00:09:38]} {[%emt 00:00:09]} 41. gxf3 {[%clk 00:08:05]} {[%emt 00:00:12]} Rxh7+
{[%clk 00:09:41]} {[%emt 00:00:02]} 42. Kg2 {[%clk 00:08:09]} {[%emt 00:00:01]}
Rg8+ {[%clk 00:09:41]} {[%emt 00:00:06]} 43. Kf1 {[%clk 00:08:09]} {[%emt
00:00:03]} Rh1+ {[%clk 00:09:42]} {[%emt 00:00:05]} 44. Ke2 {[%clk 00:08:13]}
{[%emt 00:00:01]} Rg2+ {[%clk 00:09:45]} {[%emt 00:00:02]} 45. Kd3 {[%clk
00:08:17]} {[%emt 00:00:01]} Rd1+ {[%clk 00:09:36]} {[%emt 00:00:14]} 46. Kc3
{[%clk 00:08:12]} {[%emt 00:00:09]} Rf1 {[%clk 00:09:39]} {[%emt 00:00:03]} 47.
Nd2 {[%clk 00:08:08]} {[%emt 00:00:10]} Rxd2 {[%clk 00:09:41]} {[%emt
00:00:02]} 0-1



[ePGN "0.1;DGT LiveChess/2.2.6"]

[Event "MČR juniorů a juniorek v rapid šachu 2024"]
[Site "Hotel Fit Fun, Harrachov, Czech Republic"]
[Date "2024.09.21"]
[Round "5.25"]
[White "Slivova Linda"]
[Black "Siles Jan"]
[Result "0-1"]
[TimeControl "20+5"]
[WhiteFideId "23709294"]
[BlackFideId "23715405"]
[WhiteElo "1630"]
[BlackElo "1873"]

1. e4 {[%clk 00:20:08]} {[%emt 00:00:01]} c5 {[%clk 00:20:09]} {[%emt
00:00:02]} 2. Nc3 {[%clk 00:20:11]} {[%emt 00:00:01]} d6 {[%clk 00:19:43]}
{[%emt 00:00:31]} 3. g3 {[%clk 00:20:15]} {[%emt 00:00:02]} Nf6 {[%clk
00:19:42]} {[%emt 00:00:05]} 4. Bg2 {[%clk 00:20:18]} {[%emt 00:00:02]} Nc6
{[%clk 00:19:45]} {[%emt 00:00:02]} 5. d3 {[%clk 00:20:14]} {[%emt 00:00:10]}
g6 {[%clk 00:18:56]} {[%emt 00:00:54]} 6. h3 {[%clk 00:20:17]} {[%emt
00:00:01]} Bg7 {[%clk 00:18:59]} {[%emt 00:00:02]} 7. Be3 {[%clk 00:20:20]}
{[%emt 00:00:02]} Bd7 {[%clk 00:18:01]} {[%emt 00:01:03]} 8. Qd2 {[%clk
00:20:07]} {[%emt 00:00:17]} Nd4 {[%clk 00:16:11]} {[%emt 00:01:56]} 9. Nd1
{[%clk 00:19:06]} {[%emt 00:01:06]} Bc6 {[%clk 00:13:21]} {[%emt 00:02:55]} 10.
c3 {[%clk 00:18:29]} {[%emt 00:00:42]} Ne6 {[%clk 00:12:56]} {[%emt 00:00:31]}
11. f4 {[%clk 00:17:00]} {[%emt 00:01:34]} Nd7 {[%clk 00:11:29]} {[%emt
00:01:31]} 12. Nf3 {[%clk 00:15:28]} {[%emt 00:01:38]} Nc7 {[%clk 00:10:47]}
{[%emt 00:00:47]} 13. O-O {[%clk 00:15:11]} {[%emt 00:00:21]} d5 {[%clk
00:10:22]} {[%emt 00:00:31]} 14. e5 {[%clk 00:14:36]} {[%emt 00:00:40]} e6
{[%clk 00:09:53]} {[%emt 00:00:33]} 15. d4 {[%clk 00:13:18]} {[%emt 00:01:23]}
Qe7 {[%clk 00:09:23]} {[%emt 00:00:35]} 16. Kh2 {[%clk 00:12:22]} {[%emt
00:01:01]} O-O-O {[%clk 00:07:38]} {[%emt 00:01:50]} 17. dxc5 {[%clk 00:09:29]}
{[%emt 00:02:59]} Nxc5 {[%clk 00:07:38]} {[%emt 00:00:05]} 18. Nd4 {[%clk
00:09:19]} {[%emt 00:00:14]} f6 {[%clk 00:04:39]} {[%emt 00:03:04]} 19. exf6
{[%clk 00:08:44]} {[%emt 00:00:40]} Bxf6 {[%clk 00:04:38]} {[%emt 00:00:06]} 20.
Nxc6 {[%clk 00:08:45]} {[%emt 00:00:04]} bxc6 {[%clk 00:04:40]} {[%emt
00:00:03]} 21. b4 {[%clk 00:07:33]} {[%emt 00:01:17]} Ne4 {[%clk 00:03:28]}
{[%emt 00:01:17]} 22. Bxe4 {[%clk 00:06:31]} {[%emt 00:01:07]} dxe4 {[%clk
00:03:32]} {[%emt 00:00:02]} 23. Qc2 {[%clk 00:03:16]} {[%emt 00:03:20]} Rd3
{[%clk 00:03:30]} {[%emt 00:00:06]} 24. Bc5 {[%clk 00:01:49]} {[%emt 00:01:32]}
Qd7 {[%clk 00:03:14]} {[%emt 00:00:21]} 25. Rf2 {[%clk 00:01:00]} {[%emt
00:00:53]} Na6 {[%clk 00:02:49]} {[%emt 00:00:30]} 26. Nb2 {[%clk 00:00:36]}
{[%emt 00:00:29]} Nxc5 {[%clk 00:01:53]} {[%emt 00:01:01]} 27. bxc5 {[%clk
00:00:34]} {[%emt 00:00:07]} Rxc3 {[%clk 00:01:13]} {[%emt 00:00:46]} 28. Qxe4
{[%clk 00:00:38]} {[%emt 00:00:01]} Rxc5 {[%clk 00:01:06]} {[%emt 00:00:12]} 29.
Nd3 {[%clk 00:00:41]} {[%emt 00:00:01]} Rd5 {[%clk 00:00:52]} {[%emt 00:00:19]}
30. Nb4 {[%clk 00:00:21]} {[%emt 00:00:25]} Bxa1 {[%clk 00:00:45]} {[%emt
00:00:12]} 31. Nxd5 {[%clk 00:00:19]} {[%emt 00:00:07]} exd5 {[%clk 00:00:44]}
{[%emt 00:00:07]} 32. Qb1 {[%clk 00:00:14]} {[%emt 00:00:10]} Bd4 {[%clk
00:00:43]} {[%emt 00:00:06]} 33. Rc2 {[%clk 00:00:15]} {[%emt 00:00:03]} Re8
{[%clk 00:00:39]} {[%emt 00:00:10]} 34. Qb4 {[%clk 00:00:13]} {[%emt 00:00:07]}
Bb6 {[%clk 00:00:31]} {[%emt 00:00:13]} 35. a4 {[%clk 00:00:14]} {[%emt
00:00:04]} Qc7 {[%clk 00:00:23]} {[%emt 00:00:13]} 36. Qc3 {[%clk 00:00:08]}
{[%emt 00:00:10]} Re6 {[%clk 00:00:21]} {[%emt 00:00:07]} 37. Qh8+ {[%clk
00:00:11]} {[%emt 00:00:02]} Kb7 {[%clk 00:00:23]} {[%emt 00:00:04]} 38. Qg8
{[%clk 00:00:09]} {[%emt 00:00:06]} Qe7 {[%clk 00:00:23]} {[%emt 00:00:06]} 39.
Rb2 {[%clk 00:00:08]} {[%emt 00:00:06]} Re2+ {[%clk 00:00:25]} {[%emt
00:00:02]} 40. Rxe2 {[%clk 00:00:12]} {[%emt 00:00:01]} Qxe2+ {[%clk 00:00:29]}
{[%emt 00:00:02]} 41. Kh1 {[%clk 00:00:14]} {[%emt 00:00:02]} Qf1+ {[%clk
00:00:32]} {[%emt 00:00:02]} 42. Kh2 {[%clk 00:00:19]} Qg1# {[%clk 00:00:36]}
0-1



[ePGN "0.1;DGT LiveChess/2.2.6"]

[Event "MČR juniorů a juniorek v rapid šachu 2024"]
[Site "Hotel Fit Fun, Harrachov, Czech Republic"]
[Date "2024.09.21"]
[Round "5.26"]
[White "Budil Vaclav"]
[Black "Stara Zuzana"]
[Result "1/2-1/2"]
[TimeControl "20+5"]
[WhiteFideId "23776226"]
[BlackFideId "23733543"]
[WhiteElo "1697"]
[BlackElo "1796"]

1. e4 {[%clk 00:20:08]} {[%emt 00:00:02]} c6 {[%clk 00:20:10]} 2. d4 {[%clk
00:20:10]} {[%emt 00:00:03]} d5 {[%clk 00:20:14]} 3. e5 {[%clk 00:20:14]}
{[%emt 00:00:01]} Bf5 {[%clk 00:20:16]} {[%emt 00:00:02]} 4. Nf3 {[%clk
00:20:18]} {[%emt 00:00:02]} e6 {[%clk 00:20:14]} {[%emt 00:00:07]} 5. Be2
{[%clk 00:20:21]} {[%emt 00:00:03]} Nd7 {[%clk 00:20:04]} {[%emt 00:00:14]} 6.
O-O {[%clk 00:20:18]} {[%emt 00:00:08]} a5 {[%clk 00:20:08]} 7. Be3 {[%clk
00:20:12]} {[%emt 00:00:10]} a4 {[%clk 00:20:09]} {[%emt 00:00:05]} 8. a3
{[%clk 00:20:06]} {[%emt 00:00:11]} Ne7 {[%clk 00:19:56]} {[%emt 00:00:18]} 9.
c4 {[%clk 00:19:29]} {[%emt 00:00:42]} h6 {[%clk 00:18:56]} {[%emt 00:01:04]}
10. Nc3 {[%clk 00:19:28]} {[%emt 00:00:07]} Bh7 {[%clk 00:18:50]} {[%emt
00:00:11]} 11. cxd5 {[%clk 00:19:16]} {[%emt 00:00:17]} exd5 {[%clk 00:17:36]}
{[%emt 00:01:18]} 12. Nxa4 {[%clk 00:19:06]} {[%emt 00:00:16]} Nf5 {[%clk
00:17:36]} {[%emt 00:00:05]} 13. Nc3 {[%clk 00:18:45]} {[%emt 00:00:27]} Be7
{[%clk 00:16:54]} {[%emt 00:00:46]} 14. Bd3 {[%clk 00:18:23]} {[%emt 00:00:26]}
O-O {[%clk 00:16:12]} {[%emt 00:00:48]} 15. Qc2 {[%clk 00:17:51]} {[%emt
00:00:37]} g6 {[%clk 00:16:01]} {[%emt 00:00:15]} 16. Bxf5 {[%clk 00:17:53]}
{[%emt 00:00:04]} gxf5 {[%clk 00:16:05]} 17. Bxh6 {[%clk 00:17:49]} {[%emt
00:00:09]} Re8 {[%clk 00:16:04]} {[%emt 00:00:05]} 18. Qd2 {[%clk 00:17:37]}
{[%emt 00:00:17]} Nf8 {[%clk 00:15:52]} {[%emt 00:00:18]} 19. Bg5 {[%clk
00:17:26]} {[%emt 00:00:16]} Ne6 {[%clk 00:15:15]} {[%emt 00:00:42]} 20. Bxe7
{[%clk 00:17:22]} {[%emt 00:00:08]} Qxe7 {[%clk 00:15:18]} {[%emt 00:00:01]} 21.
Rfe1 {[%clk 00:17:16]} {[%emt 00:00:11]} Kh8 {[%clk 00:15:17]} {[%emt
00:00:06]} 22. Qh6 {[%clk 00:16:37]} {[%emt 00:00:44]} Rg8 {[%clk 00:15:15]}
{[%emt 00:00:08]} 23. Qh4 {[%clk 00:14:35]} {[%emt 00:02:07]} Qxh4 {[%clk
00:15:13]} {[%emt 00:00:07]} 24. Nxh4 {[%clk 00:14:37]} {[%emt 00:00:04]} Nxd4
{[%clk 00:15:16]} {[%emt 00:00:02]} 25. Rad1 {[%clk 00:14:03]} {[%emt
00:00:38]} Rg4 {[%clk 00:14:54]} {[%emt 00:00:27]} 26. g3 {[%clk 00:13:54]}
{[%emt 00:00:13]} Rxh4 {[%clk 00:11:52]} {[%emt 00:03:08]} 27. gxh4 {[%clk
00:13:48]} {[%emt 00:00:12]} Nf3+ {[%clk 00:11:56]} 28. Kg2 {[%clk 00:13:52]}
Nxe1+ {[%clk 00:11:54]} {[%emt 00:00:07]} 29. Rxe1 {[%clk 00:13:55]} {[%emt
00:00:02]} Re8 {[%clk 00:11:04]} {[%emt 00:00:55]} 30. Kf3 {[%clk 00:13:33]}
{[%emt 00:00:27]} Kg7 {[%clk 00:10:26]} {[%emt 00:00:43]} 31. Kf4 {[%clk
00:12:49]} {[%emt 00:00:49]} Kh6 {[%clk 00:10:20]} {[%emt 00:00:11]} 32. Ne2
{[%clk 00:12:47]} {[%emt 00:00:07]} Ra8 {[%clk 00:07:13]} {[%emt 00:03:12]} 33.
Kg3 {[%clk 00:10:55]} {[%emt 00:01:57]} Ra4 {[%clk 00:06:18]} {[%emt 00:00:59]}
34. f3 {[%clk 00:09:28]} {[%emt 00:01:33]} Ra8 {[%clk 00:03:38]} {[%emt
00:02:45]} 35. Nf4 {[%clk 00:09:25]} {[%emt 00:00:08]} Rg8+ {[%clk 00:03:31]}
{[%emt 00:00:12]} 36. Kf2 {[%clk 00:09:08]} {[%emt 00:00:21]} Re8 {[%clk
00:03:10]} {[%emt 00:00:26]} 37. e6 {[%clk 00:08:51]} {[%emt 00:00:22]} fxe6
{[%clk 00:02:52]} {[%emt 00:00:23]} 38. Rxe6+ {[%clk 00:08:32]} {[%emt
00:00:25]} Rxe6 39. Nxe6 {[%clk 00:08:34]} b6 {[%clk 00:02:34]} {[%emt
00:00:27]} 40. Kg3 {[%clk 00:07:41]} {[%emt 00:00:58]} c5 {[%clk 00:02:24]}
{[%emt 00:00:16]} 41. Kf4 {[%clk 00:07:33]} {[%emt 00:00:11]} d4 {[%clk
00:01:57]} {[%emt 00:00:32]} 42. Nf8 {[%clk 00:07:07]} {[%emt 00:00:32]} c4
{[%clk 00:00:25]} {[%emt 00:01:37]} 43. Ne6 {[%clk 00:06:12]} {[%emt 00:00:59]}
d3 {[%clk 00:00:29]} {[%emt 00:00:02]} 44. Ke3 {[%clk 00:06:15]} Kh5 {[%clk
00:00:29]} {[%emt 00:00:05]} 45. b3 {[%clk 00:04:46]} {[%emt 00:01:34]} Bg8
{[%clk 00:00:06]} {[%emt 00:00:28]} 46. Nf4+ {[%clk 00:04:46]} {[%emt
00:00:05]} Kxh4 {[%clk 00:00:09]} {[%emt 00:00:03]} 47. bxc4 {[%clk 00:04:49]}
{[%emt 00:00:03]} Bxc4 {[%clk 00:00:13]} 48. Nxd3 {[%clk 00:04:42]} {[%emt
00:00:11]} Kh3 {[%clk 00:00:12]} {[%emt 00:00:06]} 49. Kd4 {[%clk 00:02:22]}
{[%emt 00:02:24]} b5 {[%clk 00:00:16]} {[%emt 00:00:02]} 50. Nb2 {[%clk
00:02:02]} {[%emt 00:00:25]} Be2 {[%clk 00:00:19]} {[%emt 00:00:02]} 51. Ke3
{[%clk 00:01:14]} {[%emt 00:00:53]} Bf1 {[%clk 00:00:23]} 52. Kf4 {[%clk
00:00:14]} {[%emt 00:01:05]} Be2 {[%clk 00:00:17]} {[%emt 00:00:06]} 53. Ke3
{[%clk 00:00:08]} {[%emt 00:00:16]} Bf1 {[%clk 00:00:21]} {[%emt 00:00:02]} 54.
Kf2 {[%clk 00:00:12]} Bg2 {[%clk 00:00:25]} {[%emt 00:00:02]} 55. Nd3 {[%clk
00:00:15]} {[%emt 00:00:02]} Kxh2 {[%clk 00:00:25]} {[%emt 00:00:04]} 56. Nf4
{[%clk 00:00:18]} {[%emt 00:00:01]} Bh3 {[%clk 00:00:18]} {[%emt 00:00:12]} 57.
Ne2 {[%clk 00:00:06]} {[%emt 00:00:18]} Bg2 {[%clk 00:00:19]} {[%emt 00:00:04]}
58. Nf4 {[%clk 00:00:10]} {[%emt 00:00:01]} Bh3 {[%clk 00:00:22]} {[%emt
00:00:02]} 1/2-1/2



[ePGN "0.1;DGT LiveChess/2.2.6"]